[Event "WYCC 2018 G16"]
[Site "Halkidiki"]
[Date "2018.10.21"]
[Round "2"]
[White "Ouellet, Maili-Jade"]
[Black "Nguyen, Vu Thu Hien"]
[Result "0-1"]
[ECO "D51"]
[WhiteElo "2122"]
[BlackElo "1841"]
[Annotator "NA"]
[PlyCount "178"]
[EventDate "2018.10.20"]
[EventType "swiss"]
[EventCountry "GRE"]
[SourceTitle "playchess.com"]
[Source "ChessBase"]
[SourceQuality "1"]
[TimeControl "40/5400+30:1800+30"]

1. d4 {[%emt 0:00:00]} d5 {[%emt 0:00:00]} 2. c4 {[%emt 0:00:00]} e6 {[%emt 0:00:00]} 3. Nc3 {[%emt 0:00:00]} Nf6 {[%emt 0:00:00]} 4. Bg5 {[%emt 0:00:00]} Nbd7 {[%emt 0:00:17]} 5. cxd5 {[%emt 0:00:00]} exd5 {[%emt 0:00:05]} 6. e3 {[%emt 0:00:00]} Be7 {[%emt 0:00:08]} 7. Bd3 {[%emt 0:00:02]} c6 {[%emt 0:00:07]} 8. Qc2 {[%emt 0:00:05]} O-O {[%emt 0:00:07]} 9. Nf3 {[%emt 0:00:03]} h6 {[%emt 0:00:13]} 10. Bh4 {[%emt 0:00:16]} Re8 {[%emt 0:00:08]} 11. O-O {[%emt 0:00:06]} Ne4 {[%emt 0:00:08]} 12. Bxe7 {[%emt 0:00:16]} Qxe7 {[%emt 0:00:06]} 13. b4 {[%emt 0:00:14]} Ndf6 {[%emt 0:00:00]} 14. Rab1 {[%emt 0:02:03]} Nxc3 {[%emt 0:00:50] D36: Damengambit (Abtauschvariante)} (14... Bf5 15. Rfc1 a6 16. a4 Ng4 17. Bxe4 Bxe4 18. Nxe4 dxe4 19. Nd2 Qh4 20. Nf1 Re6 21. h3 Nf6 22. b5 axb5 23. axb5 {½-½ (62) Tomczak,M (2383)-Nevednichy,V (2551) Graz 2018}) 15. Qxc3 {[%emt 0:00:05]} Ne4 {[%emt 0:00:05]} 16. Qc2 {[%emt 0:00:29]} a6 {[%emt 0:01:18]} 17. a4 {[%emt 0:00:55]} f6 {[%emt 0:08:52]} 18. Nd2 {[%emt 0:15:33]} Bd7 $146 {[%emt 0:02:02]} ({Vorgänger:} 18... Nxd2 19. Qxd2 f5 20. Rfc1 Bd7 21. b5 axb5 22. axb5 {1-0 (31) Pihlajasalo,H-Helin,T Espoo 1996}) 19. Rfe1 {[%emt 0:07:24]} Kh8 {[%emt 0:13:37]} 20. f3 {[%emt 0:05:10]} Nxd2 {[%emt 0:00:14]} 21. Qxd2 {[%emt 0:00:07]} Qd6 {[%emt 0:00:07]} 22. g4 {[%emt 0:22:53]} Rf8 {[%emt 0:04:05]} 23. Bf5 {[%emt 0:07:39]} Be8 {[%emt 0:04:07]} 24. Qc2 {[%emt 0:05:24]} Rd8 {[%emt 0:02:46]} 25. Kh1 {[%emt 0:05:21]} Rf7 {[%emt 0:09:52]} 26. Rg1 {[%emt 0:10:36]} Re7 {[%emt 0:00:13]} 27. Rb3 {[%emt 0:00:05]} Bf7 {[%emt 0:03:34]} 28. Rg3 {[%emt 0:02:52]} Rg8 {[%emt 0:08:46]} 29. Rh3 {[%emt 0:06:47]} Rge8 {[%emt 0:00:46]} 30. f4 {[%emt 0:00:25]} Be6 {[%emt 0:10:59]} 31. Bg6 {[%emt 0:01:24]} Rf8 {[%emt 0:04:41]} 32. Rg3 {[%emt 0:02:11]} Bf7 {[%emt 0:02:38]} 33. Bf5 {[%emt 0:00:31]} Be6 {[%emt 0:00:06]} 34. Bd3 {[%emt 0:00:53]} Bd7 {[%emt 0:03:33]} 35. Qg2 {[%emt 0:01:52]} Ref7 {[%emt 0:02:02]} 36. Bg6 {[%emt 0:00:06]} Re7 {[%emt 0:00:04]} 37. Bb1 {[%emt 0:00:33]} Re6 {[%emt 0:12:13]} 38. Qc2 {[%emt 0:00:59]} Re4 {[%emt 0:00:07]} 39. Qc5 {[%emt 0:00:00]} Re6 {[%emt 0:00:00]} 40. Bf5 {[%emt 0:00:00]} Rfe8 {[%emt 0:00:00]} 41. Bxe6 {[%emt 0:04:04]} Qxe6 {[%emt 0:01:42]} 42. Qc2 {[%emt 0:00:28]} Qd6 {[%emt 0:00:57]} 43. Rb1 {[%emt 0:01:13]} Qe7 {[%emt 0:00:51]} 44. Kg2 {[%emt 0:02:20]} Rf8 {[%emt 0:00:22]} 45. h4 {[%emt 0:04:47]} Rf7 {[%emt 0:00:42]} 46. Kf2 {[%emt 0:00:53]} Kg8 {[%emt 0:00:32]} 47. Ke2 {[%emt 0:02:14]} Qe8 {[%emt 0:02:54]} 48. Rbg1 {[%emt 0:00:56]} Re7 {[%emt 0:01:14]} 49. Kf2 {[%emt 0:01:38]} Rf7 {[%emt 0:02:29]} 50. g5 {[%emt 0:06:12]} fxg5 {[%emt 0:00:34]} 51. hxg5 {[%emt 0:00:05]} h5 {[%emt 0:00:12]} 52. g6 {[%emt 0:00:33]} Rf6 {[%emt 0:00:14]} 53. Rg5 {[%emt 0:00:46]} Bg4 {[%emt 0:00:12]} 54. Rg3 {[%emt 0:03:02]} Qf8 {[%emt 0:00:25]} 55. Qd2 {[%emt 0:01:53]} Qd6 {[%emt 0:00:39]} (55... Rf5 $14 56. Rxf5 Qxf5) 56. Re5 {[%emt 0:08:38]} Rxg6 {[%emt 0:00:52]} 57. Ke1 {[%emt 0:01:53]} Qf6 {[%emt 0:03:24]} 58. Rg1 {[%emt 0:01:19]} Qf8 {[%emt 0:01:55]} 59. Qb2 {[%emt 0:01:51]} Qd8 {[%emt 0:01:24]} 60. Kd2 {[%emt 0:00:29]} Qh4 {[%emt 0:02:28]} 61. Kc3 {[%emt 0:00:35]} Qd8 {[%emt 0:01:37]} (61... Bf5 $1 $11 {keeps the balance.} 62. Rf1 Rg3) 62. Qc2 {[%emt 0:00:37]} Kf7 {[%emt 0:06:50] [#]} 63. Kb3 $2 {[%emt 0:00:35]} (63. Rxg4 $1 $18 {[%mdl 512] and the rest is easy.} hxg4 (63... Rxg4 64. Qf5+) 64. Qf5+ Qf6 65. Qc8) 63... Qb6 {[%emt 0:01:57]} 64. Qc5 {[%emt 0:01:00]} Qxc5 {[%emt 0:01:23]} 65. dxc5 {[%emt 0:00:07]} Re6 {[%emt 0:02:46]} 66. Rxe6 {[%emt 0:00:20]} Kxe6 {[%emt 0:00:01]} 67. Kc3 {[%emt 0:00:21]} g6 {[%emt 0:00:46]} 68. Kd4 {[%emt 0:00:14]} Bf5 {[%emt 0:00:15]} 69. Rh1 {[%emt 0:00:27]} Bc2 {[%emt 0:00:19]} 70. Ra1 {[%emt 0:00:30]} Be4 {[%emt 0:02:17]} 71. b5 {[%emt 0:00:29]} h4 {[%emt 0:00:24]} 72. bxa6 {[%emt 0:00:07]} bxa6 {[%emt 0:00:03]} 73. Ra2 {[%emt 0:01:15]} h3 {[%emt 0:00:05]} 74. Rh2 {[%emt 0:00:15]} Bg2 {[%emt 0:00:58]} 75. Kc3 {[%emt 0:00:50]} Kf5 {[%emt 0:00:38]} 76. Kb4 $19 {[%emt 0:00:18]} Ke4 {[%emt 0:01:40]} 77. Ka5 {[%emt 0:00:06]} Kxe3 {[%emt 0:00:05]} 78. Kxa6 {[%emt 0:00:09]} d4 {[%emt 0:00:04]} 79. Kb7 {[%emt 0:00:31]} d3 {[%emt 0:00:05]} 80. a5 {[%emt 0:00:04]} d2 {[%emt 0:00:03]} 81. a6 {[%emt 0:00:03]} d1=Q {[%emt 0:00:07]} 82. a7 {[%emt 0:00:08]} Qd7+ {[%emt 0:00:12]} 83. Kb8 {[%emt 0:00:08]} Qe8+ {[%emt 0:00:19]} 84. Kb7 {[%emt 0:00:14]} Qf7+ {[%emt 0:00:18]} 85. Kb6 {[%emt 0:00:07]} Qb3+ {[%emt 0:00:52]} 86. Kc7 {[%emt 0:00:15]} Qa4 {[%emt 0:00:18]} 87. Kb7 {[%emt 0:00:13]} Kxf4 {[%emt 0:00:43]} 88. a8=Q {[%emt 0:00:10]} Qxa8+ {[%emt 0:00:04]} 89. Kxa8 {[%emt 0:00:06]} Kg3 0-1

[Event "WYCC 2018 G16"]
[Site "Halkidiki"]
[Date "2018.10.21"]
[Round "2"]
[White "Grigorieva, Yulia"]
[Black "Hajiyeva, Laman"]
[Result "1-0"]
[ECO "D30"]
[WhiteElo "2112"]
[BlackElo "1916"]
[Annotator "NA"]
[PlyCount "91"]
[EventDate "2018.10.20"]
[EventType "swiss"]
[EventCountry "GRE"]
[SourceTitle "playchess.com"]
[Source "ChessBase"]
[SourceQuality "1"]
[TimeControl "40/5400+30:1800+30"]

1. d4 {[%emt 0:00:00]} d5 {[%emt 0:00:00]} 2. c4 {[%emt 0:00:00]} c6 {[%emt 0:00:00]} 3. Nf3 {[%emt 0:00:00]} Nf6 {[%emt 0:00:00]} 4. Nbd2 {[%emt 0:00:09]} e6 {[%emt 0:01:31]} 5. e3 {[%emt 0:00:52]} c5 {[%emt 0:00:35]} 6. b3 {[%emt 0:01:25]} Nc6 {[%emt 0:01:36] D30: Queen's Gambit Declined: Systems without Nc3} 7. Bb2 {[%emt 0:01:38]} Bd6 {[%emt 0:01:49]} (7... cxd4 8. exd4 Be7 9. Rc1 O-O 10. Bd3 b6 11. O-O Bb7 12. Qe2 Rc8 13. Rfd1 Re8 14. Qe3 Bf8 15. Ne5 Nxe5 16. dxe5 Nd7 17. Nf3 g6 18. Nd4 Nc5 19. Bf1 a6 20. Ba3 {0-1 (57) Korobov,A (2719)-Ter Sahakyan,S (2572) Yerevan 2014}) 8. dxc5 {[%emt 0:06:11]} Bxc5 {[%emt 0:00:22]} 9. a3 {[%emt 0:04:11]} d4 $146 {[%emt 0:17:11]} ({Predecessor:} 9... a6 10. Qc2 Qe7 11. b4 Ba7 12. cxd5 exd5 13. Bd3 {0-1 (43) Krivenko,S (2326)-Efanov,N (2421) Moscow 2011}) 10. exd4 {[%emt 0:10:08]} Nxd4 {[%emt 0:08:42]} 11. b4 {[%emt 0:09:49]} Qb6 {[%emt 0:09:02]} (11... Nxf3+ $1 $11 {keeps the balance.} 12. Nxf3 Qxd1+ 13. Rxd1 Be7) 12. Bxd4 {[%emt 0:07:18]} Bxd4 {[%emt 0:00:25]} 13. c5 {[%emt 0:01:36]} Qd8 {[%emt 0:00:49]} 14. Bb5+ {[%emt 0:01:34]} Ke7 {[%emt 0:01:02]} 15. Rc1 {[%emt 0:08:14]} a5 {[%emt 0:14:59]} 16. Nc4 {[%emt 0:10:18]} e5 {[%emt 0:04:58]} 17. Nd6 {[%emt 0:09:03]} axb4 {[%emt 0:13:25]} 18. axb4 {[%emt 0:06:39]} Bg4 {[%emt 0:13:10]} 19. Qb3 {[%emt 0:06:05]} Be6 {[%emt 0:00:42]} 20. Bc4 {[%emt 0:02:03]} b6 {[%emt 0:03:48]} 21. Nxd4 {[%emt 0:05:03]} exd4 {[%emt 0:00:09]} 22. O-O {[%emt 0:01:40]} Qd7 {[%emt 0:02:43]} 23. Rfe1 {[%emt 0:02:25]} Rhe8 {[%emt 0:02:11]} 24. Nxe8 {[%emt 0:04:23]} Nxe8 {[%emt 0:00:14]} 25. cxb6 {[%emt 0:00:37]} Rb8 {[%emt 0:00:10]} 26. b5 {[%emt 0:00:57]} Rxb6 {[%emt 0:00:39]} 27. Qb4+ {[%emt 0:00:14]} Qd6 {[%emt 0:01:39]} 28. Qxd6+ {[%emt 0:00:20]} Nxd6 {[%emt 0:00:05]} 29. Bxe6 {[%emt 0:00:42]} fxe6 {[%emt 0:00:01]} 30. Rc7+ {[%emt 0:00:34]} Kf6 {[%emt 0:00:01]} 31. Rc6 {[%emt 0:00:45]} Rxc6 {[%emt 0:00:29]} 32. bxc6 {[%emt 0:00:01]} e5 {[%emt 0:02:07]} 33. f3 {[%emt 0:00:26]} Ke6 {[%emt 0:00:14]} 34. Kf2 {[%emt 0:00:34]} g5 {[%emt 0:01:17]} 35. c7 {[%emt 0:00:48]} Kd5 {[%emt 0:00:42]} 36. Rb1 {[%emt 0:00:38]} Kc6 {[%emt 0:00:37]} 37. Rc1+ {[%emt 0:00:08]} Kd7 {[%emt 0:00:05]} 38. Ke2 {[%emt 0:00:13]} Kc8 {[%emt 0:00:41]} 39. Kd3 {[%emt 0:00:39]} Nb5 {[%emt 0:00:39]} 40. Rc5 {[%emt 0:00:00]} Nxc7 {[%emt 0:00:00]} 41. Rxe5 {[%emt 0:00:38]} h6 {[%emt 0:00:47]} 42. Kxd4 {[%emt 0:01:21]} Kd7 {[%emt 0:03:05]} 43. Ke4 {[%emt 0:00:56]} Ne6 {[%emt 0:06:38]} 44. Kf5 $18 {[%emt 0:00:53]} Nd4+ {[%emt 0:00:10]} 45. Kg6 {[%emt 0:00:31]} Nc6 {[%emt 0:00:11]} 46. Re4 {[%emt 0:00:23]} 1-0

[Event "WYCC 2018 G16"]
[Site "Halkidiki"]
[Date "2018.10.21"]
[Round "2"]
[White "Palma, Maria"]
[Black "Akti, Ezgi"]
[Result "1-0"]
[ECO "A13"]
[WhiteElo "2106"]
[BlackElo "1643"]
[Annotator "NA"]
[PlyCount "47"]
[EventDate "2018.10.20"]
[EventType "swiss"]
[EventCountry "GRE"]
[SourceTitle "playchess.com"]
[Source "ChessBase"]
[SourceQuality "1"]
[TimeControl "40/5400+30:1800+30"]

1. c4 {[%emt 0:00:00]} e6 {[%emt 0:00:00]} 2. Nf3 {[%emt 0:00:00]} Nf6 {[%emt 0:01:12]} 3. g3 {[%emt 0:00:08]} d5 {[%emt 0:03:50]} 4. b3 {[%emt 0:00:09]} Be7 {[%emt 0:07:27]} 5. Bg2 {[%emt 0:00:11]} Nbd7 {[%emt 0:01:03]} 6. O-O {[%emt 0:02:33]} O-O {[%emt 0:00:48]} 7. Bb2 {[%emt 0:00:32]} Re8 {[%emt 0:11:41]} 8. d4 {[%emt 0:06:32] A14: English Opening: 1...e6 with b3 by White} (8. Qc2 Bf8 9. d3 c6 10. Nbd2 e5 11. e3 b6 12. a3 a5 13. Bc3 Bb7 14. b4 a4 15. Bb2 b5 {1-0 (47) Markowski,T (2629)-Leniart,A (2439) Warsaw 2009}) 8... c5 {[%emt 0:00:44]} 9. cxd5 {[%emt 0:05:40]} exd5 {[%emt 0:00:29]} 10. Nc3 {[%emt 0:02:57]} Nb6 {[%emt 0:11:23]} 11. Rc1 {[%emt 0:08:58]} c4 $146 {[%emt 0:10:35]} ({Predecessor:} 11... Bf5 12. dxc5 Bxc5 13. Nd4 Bg6 14. a4 a5 15. Ncb5 Rc8 {½-½ (32) Trauth,M (2199)-Duruz,N (1912) Arco 2013}) 12. Ne5 {[%emt 0:04:36]} Ng4 {[%emt 0:05:55]} 13. bxc4 {[%emt 0:31:50]} Nxe5 {[%emt 0:03:48]} 14. dxe5 {[%emt 0:00:16]} Nxc4 {[%emt 0:00:38]} 15. Ba1 {[%emt 0:07:06]} Bg5 {[%emt 0:05:45]} 16. Nxd5 {[%emt 0:04:17]} Bxc1 {[%emt 0:03:10]} 17. Qxc1 {[%emt 0:00:21]} Nxe5 {[%emt 0:11:47]} 18. Nc7 {[%emt 0:05:49]} Bd7 {[%emt 0:11:48]} 19. Nxa8 {[%emt 0:01:40]} Qxa8 {[%emt 0:00:31]} 20. Qc7 {[%emt 0:00:17]} Re7 {[%emt 0:06:23]} 21. Bxe5 {[%emt 0:01:21]} Qe8 {[%emt 0:00:01]} 22. Bf4 {[%emt 0:01:45]} Rxe2 {[%emt 0:00:59]} 23. Rd1 {[%emt 0:06:00]} Re7 $18 {[%emt 0:00:54]} 24. Qb8 {[%emt 0:00:39]} 1-0

[Event "WYCC 2018 G16"]
[Site "Halkidiki"]
[Date "2018.10.21"]
[Round "2"]
[White "Kucharska, Honorata"]
[Black "Golsta, Ramona"]
[Result "1/2-1/2"]
[ECO "C42"]
[WhiteElo "2073"]
[BlackElo "1681"]
[Annotator "NA"]
[PlyCount "69"]
[EventDate "2018.10.20"]
[EventType "swiss"]
[EventCountry "GRE"]
[SourceTitle "playchess.com"]
[Source "ChessBase"]
[SourceQuality "1"]
[TimeControl "40/5400+30:1800+30"]

1. e4 {[%emt 0:00:00]} e5 {[%emt 0:00:01]} 2. Nf3 {[%emt 0:00:00]} Nf6 {[%emt 0:00:07]} 3. Nxe5 {[%emt 0:01:01]} d6 {[%emt 0:02:13]} 4. Nf3 {[%emt 0:00:06]} Nxe4 {[%emt 0:00:32]} 5. Nc3 {[%emt 0:00:05]} Nxc3 {[%emt 0:02:18]} 6. dxc3 {[%emt 0:00:11]} Be7 {[%emt 0:03:35]} 7. Be3 {[%emt 0:01:07]} Nc6 {[%emt 0:04:32]} 8. Qd2 {[%emt 0:01:46]} Bf5 {[%emt 0:03:36]} 9. O-O-O {[%emt 0:02:50]} O-O {[%emt 0:04:38]} 10. h3 {[%emt 0:02:32] LiveBook: 3 Games} Bf6 {[%emt 0:03:38]} 11. Rg1 {[%emt 0:09:43] C42: Petroff Defence: 3 Nxe5 and unusual White 3rd moves} (11. g4 Be4 12. Bg2 Ne5 13. Nxe5 Bxg2 14. Rh2 Be4 15. Nd3 Bh4 16. g5 Qd7 17. Rg1 f5 18. Nf4 Qa4 {0-1 (69) Bortnyk,O (2170)-Pihlajasalo,A (2441) ICC INT 2009}) 11... Be4 {[%emt 0:08:55]} 12. Ng5 $146 {[%emt 0:03:18]} ({Predecessor:} 12. Be2 Ne5 13. Ng5 Bxg5 14. Bxg5 Qd7 15. g4 Bf3 16. Rg3 Bxe2 17. Qxe2 Qa4 18. Kb1 Rfe8 {½-½ (55) Winiwarter,F (2117)-Teuber,A (2208) Austria 2016}) 12... Bg6 {[%emt 0:02:47]} 13. f4 {[%emt 0:10:44]} h6 {[%emt 0:03:45]} 14. Nf3 {[%emt 0:00:04]} Re8 {[%emt 0:00:43]} 15. Bd3 {[%emt 0:08:29]} Bxd3 {[%emt 0:00:48]} 16. cxd3 {[%emt 0:00:28]} Qe7 {[%emt 0:03:51]} 17. Rde1 {[%emt 0:00:58]} Qe6 {[%emt 0:00:55]} 18. c4 {[%emt 0:09:15]} Qf5 {[%emt 0:03:13]} 19. g4 {[%emt 0:00:23]} Qa5 {[%emt 0:00:18]} 20. Qxa5 {[%emt 0:00:23]} Nxa5 {[%emt 0:00:01]} 21. g5 {[%emt 0:00:25]} hxg5 {[%emt 0:00:59]} 22. fxg5 {[%emt 0:00:15]} Be7 {[%emt 0:01:27]} 23. h4 {[%emt 0:09:14]} Nc6 {[%emt 0:04:39]} 24. Bd2 {[%emt 0:03:58]} Bf8 {[%emt 0:00:45]} 25. d4 {[%emt 0:03:57]} g6 {[%emt 0:03:09]} 26. Kc2 {[%emt 0:02:28]} Bg7 {[%emt 0:01:54]} 27. Kd3 {[%emt 0:04:05]} Ne7 {[%emt 0:00:36]} 28. Re2 {[%emt 0:08:24]} Nf5 {[%emt 0:00:38]} 29. Rge1 {[%emt 0:00:31]} Kf8 {[%emt 0:01:06]} 30. b3 {[%emt 0:01:45]} Rxe2 {[%emt 0:04:46]} 31. Rxe2 {[%emt 0:00:05]} Re8 {[%emt 0:00:44]} 32. Rxe8+ {[%emt 0:03:07]} Kxe8 {[%emt 0:00:02]} 33. Bf4 {[%emt 0:00:21]} Kd7 {[%emt 0:01:49]} 34. Ke4 {[%emt 0:00:51]} Ne7 $11 {[%emt 0:01:40]} 35. Bh2 {[%emt 0:05:21]} 1/2-1/2

[Event "WYCC 2018 G16"]
[Site "Halkidiki"]
[Date "2018.10.21"]
[Round "2"]
[White "Rudzinska, Michalina"]
[Black "Maltsevskaya, Aleksandra"]
[Result "1/2-1/2"]
[ECO "B35"]
[WhiteElo "2073"]
[BlackElo "2290"]
[Annotator "NA"]
[PlyCount "53"]
[EventDate "2018.10.20"]
[EventType "swiss"]
[EventCountry "GRE"]
[SourceTitle "playchess.com"]
[Source "ChessBase"]
[SourceQuality "1"]
[TimeControl "40/5400+30:1800+30"]

1. e4 {[%emt 0:00:00]} c5 {[%emt 0:00:00]} 2. Nc3 {[%emt 0:00:00]} Nc6 {[%emt 0:01:42]} 3. Nf3 {[%emt 0:00:00]} g6 {[%emt 0:01:25]} 4. d4 {[%emt 0:01:06]} cxd4 {[%emt 0:00:07]} 5. Nxd4 {[%emt 0:00:05]} Bg7 {[%emt 0:00:05]} 6. Be3 {[%emt 0:00:16]} Nf6 {[%emt 0:00:08]} 7. Bc4 {[%emt 0:00:45]} O-O {[%emt 0:00:09]} 8. Bb3 {[%emt 0:00:08]} d5 {[%emt 0:03:38]} 9. exd5 {[%emt 0:00:14] B35: Sicilian: Accelerated Dragon with 5 Nc3: main line} Na5 {[%emt 0:00:05]} 10. Nf3 {[%emt 0:10:40]} (10. O-O Nxb3 11. Nxb3 b6 12. d6 e6 13. Qf3 Rb8 14. Rfd1 Bb7 15. Qh3 Rc8 16. Bd4 Nd5 17. Nxd5 Bxd5 18. Bxg7 Kxg7 {1-0 (34) Vachier Lagrave,M (2796)-Gelfand,B (2719) Palma de Mallorca 2017}) 10... b6 {[%emt 0:11:56] LiveBook: 4 Games} 11. Qd2 {[%emt 0:03:05]} Bb7 {[%emt 0:14:02]} 12. Rd1 $146 {[%emt 0:01:15]} ({Predecessor:} 12. O-O-O Qc7 13. d6 exd6 14. Qxd6 Qxd6 15. Rxd6 Ng4 16. Bd5 Nxe3 17. fxe3 Bxc3 18. bxc3 Bxd5 19. Rxd5 {1-0 (59) Bogdanov,E (2400)-Bedouin,X (2353) Sautron 2016}) 12... Ba6 {[%emt 0:02:49]} 13. Bh6 {[%emt 0:27:11]} Qd6 {[%emt 0:22:57]} 14. Bxg7 {[%emt 0:02:21]} Kxg7 {[%emt 0:04:39]} 15. Ne2 {[%emt 0:05:06]} Rfd8 {[%emt 0:06:34]} 16. O-O {[%emt 0:04:25]} Qc7 {[%emt 0:03:55]} 17. Nfd4 {[%emt 0:06:02]} Nxb3 {[%emt 0:12:34]} 18. axb3 {[%emt 0:00:09]} Rxd5 {[%emt 0:03:01]} 19. c4 {[%emt 0:01:39]} Rd7 {[%emt 0:00:10]} 20. Qg5 {[%emt 0:11:55]} Qc5 {[%emt 0:04:56]} 21. Qe3 {[%emt 0:10:18]} e5 {[%emt 0:04:47]} 22. Nf5+ {[%emt 0:00:47]} Kg8 {[%emt 0:00:38]} 23. Nh6+ {[%emt 0:04:35]} Kg7 {[%emt 0:00:30]} 24. Nf5+ {[%emt 0:00:24]} Kg8 {[%emt 0:00:04]} 25. Nh6+ {[%emt 0:02:30]} Kg7 {[%emt 0:00:05]} 26. Nf5+ {[%emt 0:00:07]} Kg8 $16 {[%emt 0:00:49]} 27. Nh6+ {[%emt 0:00:39]} 1/2-1/2

[Event "WYCC 2018 G16"]
[Site "Halkidiki"]
[Date "2018.10.21"]
[Round "2"]
[White "Srdanovic, Jovana"]
[Black "Muetsch, Annmarie"]
[Result "1-0"]
[ECO "E71"]
[WhiteElo "2072"]
[BlackElo "2206"]
[Annotator "NA"]
[PlyCount "121"]
[EventDate "2018.10.20"]
[EventType "swiss"]
[EventCountry "GRE"]
[SourceTitle "playchess.com"]
[Source "ChessBase"]
[SourceQuality "1"]
[TimeControl "40/5400+30:1800+30"]

{[%evp 13,118,47,42,32767,32767,39,42,50,44,26,53,32767,32767,57,52,62,61,32767,93,95,98,32767,32767,32767,69,32767,32767,32767,69,54,32767,32767,32767,32767,32767,-85,-11,-14,40,32767,32767,32767,32767,32767,32767,32767,32767,32767,345,32767,32767,32767,32767,32767,32767,32767,32767,32767,32767,32767,32767,32767,32767,32767,32767,32767,483,32767,32767,32767,32767,32767,288,32767,336,334,326,32767,32767,360,382,307,404,331,32767,32767,356,310,347,312,404,479,552,630,633,32767,1082,1198,1212,975,1029,1668,1388,1659,1187,1410,12835]} 1. d4 {[%emt 0:00:00]} Nf6 {[%emt 0:00:00]} 2. c4 {[%emt 0:00:00]} g6 {[%emt 0:00:21]} 3. Nc3 {[%emt 0:00:00]} Bg7 {[%emt 0:00:05]} 4. e4 {[%emt 0:00:14]} d6 {[%emt 0:00:18]} 5. h3 {[%emt 0:00:50]} O-O {[%emt 0:00:15]} 6. Be3 {[%emt 0:00:23]} Nc6 {[%emt 0:01:49] E71: Königsindisch (5.h3)} (6... c5 7. Nf3 cxd4 8. Nxd4 a6 9. Be2 b6 10. Bf3 Bb7 11. e5 Bxf3 12. Nxf3 dxe5 13. Qxd8 Rxd8 14. Bxb6 Rc8 15. Nd2 Nfd7 16. Be3 {1-0 (64) Jones,G (2666)-Perez Candelario,M (2611) Linares 2018}) 7. d5 {[%emt 0:25:07] LiveBook: 10 Games} Nb4 {[%emt 0:00:36]} 8. a3 {[%emt 0:02:14]} Na6 {[%emt 0:00:06]} 9. Qc2 {[%emt 0:00:15]} c6 {[%emt 0:02:14]} 10. Nf3 {[%emt 0:04:51]} cxd5 $146 {[%emt 0:08:56]} ({Vorgänger:} 10... Nc7 11. Bd3 e5 12. Rd1 c5 13. O-O Nh5 14. Nd2 Nf4 15. Ne2 {0-1 (23) Budanovic,R-Viskic,P (2248) Sv Filip i Jakov 2001}) 11. cxd5 {[%emt 0:01:25]} Qa5 {[%emt 0:03:19]} 12. Nd2 {[%emt 0:01:39]} Bd7 {[%emt 0:04:34]} 13. Be2 {[%emt 0:07:47]} Rfc8 {[%emt 0:06:54]} 14. O-O {[%emt 0:02:36]} Be8 {[%emt 0:18:25]} 15. Rac1 {[%emt 0:04:47]} Nd7 {[%emt 0:01:44]} 16. Nb3 {[%emt 0:00:23]} Qd8 {[%emt 0:01:52]} 17. Qb1 {[%emt 0:07:39]} Ndc5 {[%emt 0:08:47]} 18. Nd2 {[%emt 0:04:55]} Na4 {[%emt 0:06:14]} 19. Nxa4 {[%emt 0:01:12]} Bxa4 {[%emt 0:00:15]} 20. b3 {[%emt 0:00:48]} Bd7 {[%emt 0:01:46]} 21. b4 {[%emt 0:00:38]} Nc7 {[%emt 0:04:54]} 22. Nc4 {[%emt 0:05:31]} Nb5 {[%emt 0:05:51]} 23. Bd2 {[%emt 0:13:05]} Nd4 {[%emt 0:02:24]} 24. Bd3 {[%emt 0:00:36]} b5 {[%emt 0:08:06]} 25. Na5 $1 {[%emt 0:00:35]} Bxh3 {[%emt 0:00:21]} 26. Be3 {[%emt 0:00:05]} Qd7 {[%emt 0:04:41]} 27. f3 {[%emt 0:02:58]} Be5 {[%emt 0:01:43]} 28. Qa2 {[%emt 0:06:07]} Rxc1 {[%emt 0:01:58]} 29. Rxc1 {[%emt 0:00:23]} Bg4 {[%emt 0:01:39]} 30. Qf2 {[%emt 0:00:17]} Nf5 {[%emt 0:02:52]} 31. exf5 {[%emt 0:00:32]} Bxf5 {[%emt 0:00:03]} 32. Bxf5 {[%emt 0:00:09]} Qxf5 {[%emt 0:00:18]} 33. Nc6 {[%emt 0:00:23]} Bf6 {[%emt 0:00:38]} 34. Qd2 {[%emt 0:00:50]} Re8 {[%emt 0:00:34]} 35. Re1 {[%emt 0:02:45]} Bh4 {[%emt 0:00:58]} 36. Bf2 {[%emt 0:00:15]} Bg5 {[%emt 0:00:12]} 37. Qd4 {[%emt 0:00:38]} Bf6 {[%emt 0:01:27]} 38. Qe4 {[%emt 0:00:54]} Qh5 {[%emt 0:00:45]} 39. Bg3 {[%emt 0:00:45]} e5 {[%emt 0:00:40]} 40. Qg4 {[%emt 0:00:00]} Qxg4 {[%emt 0:00:00]} 41. fxg4 {[%emt 0:00:22]} a6 {[%emt 0:01:34]} 42. Rc1 {[%emt 0:03:10]} Bg5 {[%emt 0:04:28]} 43. Rc2 {[%emt 0:00:12]} f5 {[%emt 0:00:21]} 44. gxf5 {[%emt 0:00:29]} gxf5 {[%emt 0:00:05]} 45. Kf1 {[%emt 0:02:16]} h5 {[%emt 0:01:37]} 46. Na7 {[%emt 0:01:37]} h4 {[%emt 0:01:10]} 47. Bf2 {[%emt 0:00:13]} f4 {[%emt 0:04:22]} (47... e4 {keeps fighting.} 48. Bd4 e3) 48. Rc8 {[%emt 0:00:22]} Kf7 {[%emt 0:01:41]} 49. Rc7+ {[%emt 0:01:50]} Kg6 {[%emt 0:03:13]} 50. Rc6 {[%emt 0:01:13]} e4 {[%emt 0:01:03]} 51. Rxd6+ {[%emt 0:00:12]} ({Don't play} 51. Rxa6 e3 $18) 51... Kf5 {[%emt 0:01:26]} (51... Kf7 {war einen Versuch wert.} 52. Rxa6 e3 53. Nxb5 Re5) 52. Rxa6 {[%emt 0:04:54]} h3 {[%emt 0:04:51]} 53. gxh3 {[%emt 0:00:56]} Rh8 {[%emt 0:04:13]} 54. Nxb5 {[%emt 0:01:27]} f3 {[%emt 0:03:04]} 55. Re6 {[%emt 0:04:12]} Rxh3 {[%emt 0:01:18]} 56. Nd6+ {[%emt 0:00:16]} Kg4 {[%emt 0:00:09]} 57. Rxe4+ {[%emt 0:00:25]} Bf4 {[%emt 0:00:14]} 58. Be3 {[%emt 0:02:43]} Rh1+ {[%emt 0:00:14]} 59. Kf2 $18 {[%emt 0:00:04]} Rh2+ {[%emt 0:00:50]} 60. Kg1 {[%emt 0:00:29]} f2+ {[%emt 0:01:24]} 61. Bxf2 {[%emt 0:00:15]} 1-0